{"text_format":"1","workbook":"xlsx","n_sheets":1,"sheets":["2"],"not_rendered":{"charts":1,"images":0,"macros":1,"external_links":0,"defined_names":0,"comments":0,"pivot_tables":0},"unopened":[],"bounds":{"document_bytes":16777216,"sheet_cells":100000,"rows_first":2000,"rows_last":500,"rows_between":2000,"halvings":0,"cell_chars":16384,"cell_head_chars":4096},"cells_cut":0,"cells_raw":0,"read":"whole","date_system":"1900"}

{"sheet":"2","index":0,"n_rows":56,"n_cols":49,"rows_kept":56,"cut":false,"hidden":false,"merged":[]}
[null,null,null,null,null,null,null,null,null,null,null,null,null,null,null,null,null,null,null,null,null,null,null,null,null,null,null,null,null,null,null,null,null,null,null,null,null,null,null,null,null,null,null,null,null,null,null,null,"Лин.пр. в голове поездов, км ТПЕ"]
[null,null,null,null,null,null,null,null,null,null,null,null,null,null,null,null,null,null,null,null,null,null,null,null,null,null,null,null,null,null,null,null,null,null,null,null,null,null,null,null,null,null,null,null,null,null,null,null,"ТКМ Брутто всего, тыс"]
[null,null,null,null,null,null,null,null,null,null,null,null,null,null,null,null,null,null,null,null,null,null,null,null,null,null,null,null,null,null,null,null,null,null,null,null,null,null,null,null,null,null,null,null,null,null,null,null,"ТКМ Брутто при од. след, тыс"]
[null,null,null,null,null,null,null,null,null,null,null,null,null,null,null,null,null,null,null,null,null,null,null,null,null,null,null,null,null,null,null,null,null,null,null,null,null,null,null,null,null,null,null,null,null,null,null,null,"Масса поезда, брутто"]
[]
[]
[]
[]
[]
[]
[]
[]
[]
[]
[]
[]
[]
[]
[]
[]
[]
[]
[]
[]
[]
[]
[]
[]
[]
[]
[]
[]
[]
[]
[]
[]
[]
[]
[]
[null,null,null,null,null,null,null,null,null,null,null,null,null,null,null,null,null,null,null,null,null,null,null,null,null,null,null,null,null,null,null,null,null,null,null,"факт","план"]
[null,null,null,null,null,null,null,null,null,null,null,null,null,null,null,null,null,null,null,null,null,null,null,null,null,null,null,null,null,null,null,null,7.8,11,{"$f":"AJ41-3000","v":775.72058347758139},3775.7205834775814,3747.2602740000002,{"$f":"AJ41-AK41","v":28.460309477581177},{"$f":"IF(AL41<0,\"красный\",\"\")","v":""}]
[null,null,null,null,null,null,null,null,null,null,null,null,null,null,null,null,null,null,null,null,null,null,null,null,null,null,null,null,null,null,null,null,4.5999999999999996,12,{"$f":"AJ42-3000","v":494.4975148651929},3494.4975148651929,3334.7890410999998,159.70847376519305,""]
[null,null,null,null,null,null,null,null,null,null,null,null,null,null,null,null,null,null,null,null,null,null,null,null,null,null,null,null,null,null,null,null,7.5,7.6,1024.5072479243813,4024.5072479243813,4053.1506849000002,-28.643436975618897,"красный"]
[null,null,null,null,null,null,null,null,null,null,null,null,null,null,null,null,null,null,null,null,null,null,null,null,null,null,null,null,null,null,null,null,9.9,7.1,1263.3173258625238,4263.3173258625238,4252.1972603000004,11.12006556252345,""]
[null,null,null,null,null,null,null,null,null,null,null,null,null,null,null,null,null,null,null,null,null,null,null,null,null,null,null,null,null,null,null,null,8.6999999999999993,8.8000000000000007,1055.6331920344314,4055.6331920344314,4025.0931507,30.540041334431407,""]
[null,null,null,null,null,null,null,null,null,null,null,null,null,null,null,null,null,null,null,null,null,null,null,null,null,null,null,null,null,null,null,null,4.0999999999999996,4.5999999999999996,684.56967941984658,3684.5696794198466,3614.9315068000001,69.6381726198465,""]
[null,null,null,null,null,null,null,null,null,null,null,null,null,null,null,null,null,null,null,null,null,null,null,null,null,null,null,null,null,null,null,null,6,6.2,1135.4557592903293,4135.4557592903293,4132.2712328999996,3.1845263903296654,""]
[null,null,null,null,null,null,null,null,null,null,null,null,null,null,null,null,null,null,null,null,null,null,null,null,null,null,null,null,null,null,null,null,8.5,4.8,1104.2679370743008,4104.2679370743008,4065.6739726000001,38.593964474300719,""]
[null,null,null,null,null,null,null,null,null,null,null,null,null,null,null,null,null,null,null,null,null,null,null,null,null,null,null,null,null,null,null,null,10.9,5,1208.9325790460271,4208.9325790460271,4140.0246575000001,68.907921546026955,""]
[null,null,null,null,null,null,null,null,null,null,null,null,null,null,null,null,null,null,null,null,null,null,null,null,null,null,null,null,null,null,null,null,15.5,5.4,1168.0711599702245,4168.0711599702245,4165.5232876999999,2.5478722702246159,""]
[null,null,null,null,null,null,null,null,null,null,null,null,null,null,null,null,null,null,null,null,null,null,null,null,null,null,null,null,null,null,null,null,14.8,4.0999999999999996,1394.0256480502412,4394.0256480502412,4409.5616437999997,-15.535995749758513,"красный"]
[null,null,null,null,null,null,null,null,null,null,null,null,null,null,null,null,null,null,null,null,null,null,null,null,null,null,null,null,null,null,null,null,23.6,2.7,1341.353260659268,4341.353260659268,4329.4657533999998,11.887507259268205,""]
[null,null,null,null,null,null,null,null,null,null,null,null,null,null,null,null,null,null,null,null,null,null,null,null,null,null,null,null,null,null,null,null,28,3.2,1191.0844367132013,4191.0844367132013,4191.2136985999996,-0.12926188679830375,"красный"]
[null,null,null,null,null,null,null,null,null,null,null,null,null,null,null,null,null,null,null,null,null,null,null,null,null,null,null,null,null,null,null,null,32.799999999999997,2,936.96170472821268,3936.9617047282127,3973.9534247000001,-36.991719971787461,"красный"]
[null,null,null,null,null,null,null,null,null,null,null,null,null,null,null,null,null,null,null,null,null,null,null,null,null,null,null,null,null,null,null,null,36.799999999999997,3,1059.927142330203,4059.927142330203,4077.3232877,-17.396145369797068,"красный"]
[null,null,null,null,null,null,null,null,null,null,null,null,null,null,null,null,null,null,null,null,null,null,null,null,null,null,null,null,null,null,null,null,46.4,4,880.148618843647,3880.148618843647,3916.5041096,-36.355490756352992,"красный"]